Cogmind - Beta 15 @@@ ROGUE MODE // 2025.09.24 @ 18:56:02 Player: The Sun Result: Destroyed by S-10 Pest with Light Assault Rifle Performance ------------- Evolutions (0) 0 Regions Visited (2) 400 Robots Destroyed (22) 110 Value Destroyed (543) 543 Prototype IDs (4) 80 Alien Tech Used (0) 0 Bonus (0) 0 TOTAL SCORE: 1133 Bonus ------- None Cogmind --------- Core Integrity 0/250 Matter 300/300 Energy 100/100 System Corruption 4% Temperature Cool (0) Movement Core (100) Ox1 Location -10/Mines Parts ------- > --- POWER (1) -------- (None) > --- PROPULSION (2) --- (None) > --- UTILITY (2) ------ Small Storage Unit > --- WEAPON (2) ------- (None) > --- INVENTORY (8) ---- (None) Peak State ------------ > --- POWER ------------ Light Ion Engine > --- PROPULSION ------- Aluminum Leg Aluminum Leg > --- UTILITY ---------- Heat Sink Small Matter Pod > --- WEAPON ----------- Assault Rifle Assault Rifle > --- INVENTORY -------- Light Ion Engine Wheel Wheel EM Pulse Gun [Rating: 7] Favorites ----------- Power Light Ion Engine Engine Light Ion Engine Propulsion Aluminum Leg Leg Aluminum Leg Wheel Wheel Hover Unit Hover Unit Utility Heat Sink Device Heat Sink Storage Small Matter Pod Weapon EM Pulse Gun Energy Gun EM Pulse Gun Ballistic Gun Assault Rifle Launcher Grenade Launcher Special Melee Weapon Datajack Build | -11 -10 -10 ------- Run | Yrd Mat Min Slots Evolved . | . . . Power . | . . . Propulsion . | . . . Utility . | . . . Weapon . | . . . Parts Attached 22 | 8 14 . Power 3 | 1 2 . Engine 3 | 1 2 . Core . | . . . Reactor . | . . . Propulsion 7 | 3 4 . Treads . | . . . Leg 4 | 2 2 . Wheel 2 | 1 1 . Hover 1 | . 1 . Flight . | . . . Utility 5 | 2 3 . Device 2 | 1 1 . Storage 3 | 1 2 . Processor . | . . . Hackware . | . . . Protection . | . . . Artifact . | . . . Weapon 7 | 2 5 . Energy Gun 3 | . 3 . Energy Cannon . | . . . Ballistic Gun 2 | 2 . . Ballistic Cannon . | . . . Launcher 1 | . 1 . Special Weapon . | . . . Impact Weapon . | . . . Slashing Weapon . | . . . Piercing Weapon . | . . . Special Melee Weapon 1 | . 1 . Unidentified Prototypes . | . . . Corrupted Parts 1 | . 1 . System Corruption 3 | . 3 . Parts Lost 13 | . 11 2 Power 2 | . 2 . Propulsion 4 | . 2 2 Utility 2 | . 2 . Weapon 5 | . 5 . Highest Loss Streak 8 | . 8 2 To Critical Strikes . | . . . Average Backups 3 | 2 3 . Power . | . . . Propulsion 1 | 1 1 . Utility . | . . . Weapon 1 | . 1 . Tool/Special . | . . . Unused Backups 1 | . 1 . Power . | . . . Propulsion . | . . . Utility 1 | . 1 . Weapon . | . . . Tool/Special . | . . . Average Slot Usage (%) 87 | . 89 36 Engine 11 | . 11 . Leg 14 | . 15 11 Wheel 11 | . 11 . Hover 1 | . . 11 Device 12 | . 13 . Storage 10 | . 9 14 Energy Gun 10 | . 10 . Ballistic Gun 5 | . 5 . Launcher 5 | . 6 . Special Melee Weapon 2 | . 2 . Peak Build Rating 7 | 7 7 3 Average Rating 5 | 4 6 2 On Entrance 3 | . 7 2 Naked Turns . | . . . Heaviest Build 14 | 9 14 5 Greatest Support 20 | 20 20 10 Greatest Overweight (x) 1 | . . 1 Average Overweight (x) . | . . . Largest Inventory Capacity 8 | 5 8 8 Average Capacity 5 | 5 5 8 Most Carried 5 | 5 5 . Average Carried 3 | 2 3 . Final Capacity 8 | 5 8 8 Final Carried 4 | 4 1 . Class Distribution -------------------- 91% | Mutant 8% | Scavenger-Mutant Dominant Class ---------------- Mutant | -10/Materials Mutant | -10/Mines Resources | -11 -10 -10 ----------- Run | Yrd Mat Min Matter Collected 763 | 334 414 15 Remotely . | . . . Salvage Created 507 | 60 447 . Parts 39 | 6 33 . Haulers Intercepted . | . . . Recyclers Shooed 2 | . 2 . Parts Field Recycled . | . . . Retrieved Matter . | . . . Parts Self-Destructed . | . . . Prevented . | . . . Kills | -11 -10 -10 ------- Run | Yrd Mat Min Combat Hostiles Destroyed 13 | 1 12 . Guns 7 | 1 6 . AOE 6 | . 6 . Classes Destroyed 5 | 2 3 . Worker 5 | 1 4 . Builder 1 | . 1 . Mechanic 1 | . 1 . Watcher 2 | . 2 . Grunt 13 | 1 12 . Best Kill Streak 4 | 1 4 . Combat Bots Only 2 | 1 2 . Max Kills in Single Turn 2 | 1 2 . Gunslinging . | . . . Exploded 1 | . 1 . Melee . | . . . Uniques/NPCs Destroyed . | . . . Combat | -11 -10 -10 -------- Run | Yrd Mat Min Hostile Shots Fired 166 | 6 145 15 Missed 56 | 1 49 6 Hits 110 | 5 96 9 Projectile 110 | 5 96 9 Damage Taken 1155 | 59 1019 77 Core 252 | . 203 49 Absorbed by Shields . | . . . Core Remaining (%) 100 | 100 . . Volleys Fired 57 | 7 50 . Largest 2 | 2 2 . Hottest 70 | 40 70 . Shots Fired 102 | 14 88 . Gun 85 | 14 71 . Cannon . | . . . Launcher 17 | . 17 . Special . | . . . Kinetic 42 | 14 28 . Thermal 18 | . 18 . Explosive 17 | . 17 . Electromagnetic 25 | . 25 . Robot Hit Streak 11 | 3 11 . Robot Miss Streak 4 | 3 4 . Penetration Max . | . . . Secondary Targets . | . . . Shots Hit Robots 70 | 6 64 . Core Hits 39 | 3 36 . Critical Kills . | . . . Critical Parts Destroyed . | . . . Critical Strikes . | . . . Melee Attacks 14 | . 14 . Impact . | . . . Slashing . | . . . Piercing . | . . . Sneak Attacks 3 | . 3 . Combat Hostiles . | . . . Follow-up Attacks . | . . . Damage Inflicted 1531 | 89 1440 2 Guns 640 | 89 551 . Cannons . | . . . Explosions 889 | . 889 . Melee . | . . . Ramming 2 | . . 2 Kinetic 320 | 89 231 . Thermal 165 | . 165 . Explosive 846 | . 846 . Electromagnetic 198 | . 198 . Impact . | . . . Slashing . | . . . Piercing . | . . . Highest Corruption 4 | . 4 4 Average Corruption 2 | . 2 4 Corruption Purged . | . . . Corruption Blocked . | . . . Effects 8 | . 8 . Message Errors 2 | . 2 . Matter Fused 1 | . 1 . Parts Fused 1 | . 1 . Data Loss (major) 1 | . 1 . Misfires 1 | . 1 . Alerts 2 | . 2 . Overload Shots . | . . . Overflow Damage . | . . . Projectiles . | . . . Explosions . | . . . Melee . | . . . Knockbacks . | . . . Impact . | . . . Kinetic . | . . . Secondary . | . . . Self-Inflicted Damage 13 | . 12 1 Shots 1 | . 1 . Rammed 3 | . 2 1 Targets Rammed 3 | . 2 1 Kicked . | . . . Crushed . | . . . Highest Temperature 8 | . 8 . Average Temperature 3 | . 3 . Received Heat Transfer 447 | 30 417 . Siege Activations . | . . . Martial Activations . | . . . Shielding Activations . | . . . Robots Disrupted . | . . . Combat Hostiles . | . . . Robots Corrupted . | . . . Combat Hostiles . | . . . Parts Fried . | . . . Impact Corruptions . | . . . Robots Melted . | . . . Combat Hostiles . | . . . Parts Melted . | . . . Heat Transferred 275 | . 275 . Parts Sabotaged . | . . . Parts Stolen . | . . . Parts Stripped . | . . . Power Chain Reactions 1 | . 1 . Alert | -11 -10 -10 ------- Run | Yrd Mat Min Maximum Alert Level . | . . . Low Security (%) 100 | 100 100 100 Level 1 . | . . . Level 2 . | . . . Level 3 . | . . . Level 4 . | . . . Level 5 . | . . . High Security . | . . . Max Security . | . . . Peak Influence 101 | 20 101 3 Initial 6 | . 6 3 Average 37 | 1 44 1 Influence Increases 490 | 25 465 . Destroy 0b10 Robot/C 260 | 20 240 . Destroy 0b10 Robot/NC 45 | 5 40 . Destroy Leader 64 | . 64 . Successful Hack 13 | . 13 . Disable Machine 30 | . 30 . Destroy Structure 63 | . 63 . Lose Combat Pursuer 15 | . 15 . Influence Decreases 490 | 15 466 9 Entered New Map 10 | . 4 6 Time Decay 384 | 15 366 3 Lost Part 96 | . 96 . Squads Dispatched 4 | . 4 . Investigation 3 | . 3 . Extermination . | . . . Reinforcement 1 | . 1 . Assault . | . . . Garrison . | . . . Intercept . | . . . Searches Triggered . | . . . Construction Impeded . | . . . Haulers Reinforced . | . . . Active Scanning Responses . | . . . Cargo Convoy Interrupts . | . . . Stealth | -11 -10 -10 --------- Run | Yrd Mat Min Distress Signals . | . . . Communications Jammed . | . . . Distress Signals . | . . . Times Spotted 28 | 1 22 5 Peak Tracking Total 5 | 1 5 4 Tactical Retreats 1 | . 1 . Traps | -11 -10 -10 ------- Run | Yrd Mat Min Traps Triggered 1 | . 1 . Indirectly . | . . . Trap Hack Attempts . | . . . Triggered . | . . . Disarmed . | . . . Reprogrammed . | . . . Reused . | . . . Traps Extracted . | . . . Installed . | . . . Triggered . | . . . Machines | -11 -10 -10 ---------- Run | Yrd Mat Min Machines Disabled 2 | . 2 . Max in Single Turn 1 | . 1 . Machines Repaired . | . . . Machines Dismantled . | . . . Machines Sabotaged . | . . . Overloaded Fab Kills . | . . . Hacking | -11 -10 -10 --------- Run | Yrd Mat Min Machines Accessed 4 | . 4 . Terminals 4 | . 4 . Fabricators . | . . . Repair Stations . | . . . Recycling Units . | . . . Scanalyzers . | . . . Garrison Access . | . . . Total Hacks 15 | . 15 . Successful 7 | . 7 . Failed 8 | . 8 . Catastrophic . | . . . Database Lockouts . | . . . Manual . | . . . Terminals 15 | . 15 . Fabricators . | . . . Repair Stations . | . . . Recycling Units . | . . . Scanalyzers . | . . . Garrison Access . | . . . Terminal Hacks 7 | . 7 . Record 1 | . 1 . Prototype ID Bank 2 | . 2 . Emergency Access Points 1 | . 1 . Locate Traps 1 | . 1 . Dispatch Records 1 | . 1 . Investigation Status 1 | . 1 . Fabricator Hacks . | . . . Repair Station Hacks . | . . . Recycling Unit Hacks . | . . . Scanalyzer . | . . . Garrison Access Hacks . | . . . Unauthorized Hacks . | . . . Terminals . | . . . Fabricators . | . . . Repair Stations . | . . . Recycling Units . | . . . Scanalyzers . | . . . Garrison Access . | . . . Data Cores Recovered . | . . . Used . | . . . Hacking Detections 4 | . 4 . Full Trace Events 4 | . 4 . Feedback Events . | . . . Feedback Blocked . | . . . Robot Schematics Acquired . | . . . Robots Built . | . . . Authchips . | . . . Time . | . . . Total Robot Build Rating . | . . . Part Schematics Acquired . | . . . Parts Built . | . . . Authchips . | . . . Time . | . . . Total Part Build Rating . | . . . Parts Repaired . | . . . Time . | . . . Parts Recycled . | . . . Recycled Matter . | . . . Retrieved Matter . | . . . Retrieved Components . | . . . Parts Scanalyzed . | . . . Part Schematics Acquired . | . . . Parts Damaged . | . . . Bothacking | -11 -10 -10 ------------ Run | Yrd Mat Min Used RIF Installer . | . . . Robots Hacked 3 | . 3 . Non-combat 2 | . 2 . Combat 1 | . 1 . Robot Hacks Applied 4 | . 4 . parse_system 2 | . 2 . no_distress 1 | . 1 . find_recycling 1 | . 1 . Relay Couplers Released . | . . . Fabnet Peak Effective % . | . . . Robots Rewired . | . . . Allies Hacked . | . . . Hacks Repelled . | . . . Allies | -11 -10 -10 -------- Run | Yrd Mat Min Total Allies . | . . . Largest Group . | . . . Highest-Rated Group . | . . . Highest-Rated Ally . | . . . Total Orders . | . . . Ally Attacks . | . . . Total Damage . | . . . Kills . | . . . Allies Corrupted . | . . . Allies Melted . | . . . Intel | -11 -10 -10 ------- Run | Yrd Mat Min Active Infowar (turns) . | . . . Robot Analysis Total . | . . . Derelict Logs Recovered . | . . . Drone Launches . | . . . Drone Recoveries . | . . . Exploration | -11 -10 -10 ------------- Run | Yrd Mat Min Turns Passed 1181 | 136 1009 36 Spaces Moved 957 | 99 830 28 Core 42 | 34 . 8 Treads . | . . . Legs 453 | 65 368 20 Wheels 405 | . 405 . Hover 57 | . 57 . Flight . | . . . Fastest Speed 50 | 50 60 100 Average Speed 96 | 95 96 114 Slowest Speed 120 | 120 120 120 Overloaded Moves . | . . . Propulsion Burnouts . | . . . Robots Hopped . | . . . Potential Cave-ins . | . . . Cave-ins Triggered . | . . . Exploration Rate (%) 31 | 9 74 11 Regions Visited 2 Branch Regions 1 Pre-discovered Areas . | . . . Known Exits Taken . | . . . Unknown Exits Taken 2 | 1 1 . Scrap Searched . | . . . Spaces Dug 6 | . 6 . Terrain Destroyed 71 | . 71 . Melee . | . . . Projectile . | . . . AOE 71 | . 71 . Terrain Rammed . | . . . Walls Destroyed . | . . . Machines Disabled . | . . . Actions | -11 -10 -10 --------- Run | Yrd Mat Min Total 1113 | 127 954 32 Wait 2 | . . 2 Move 955 | 98 829 28 Hop . | . . . Pick Up 25 | 11 14 . Fast Attach 1 | . 1 . Attach 33 | 9 23 1 Detach 11 | 2 9 . Swap . | . . . Drop 12 | . 12 . Fire 57 | 7 50 . Melee 14 | . 14 . Ram 3 | . 2 1 Kick . | . . . Crush . | . . . Escape Stasis . | . . . Rewire . | . . . Trap . | . . . Miscellaneous . | . . . Route ------- -11/Scrapyard -10/Materials (discovered 3 exits: [*Mat x2] / [*Min]) -10/Mines History --------- Turn | Location | Event 2 | -11/Scrapyard | Met Revision 17 101 | -11/Scrapyard | Discovered new exit (range 8) 137 | -11/Scrapyard | Entered Materials 313 | -10/Materials | Discovered new exit (range 16) 314 | -10/Materials | Build established: Mutant 601 | -10/Materials | Discovered new exit (range 7) 792 | -10/Materials | Discovered new exit (range 15) 1105 | -10/Materials | Core integrity fell below 50% 1137 | -10/Materials | Core integrity fell below 20% 1143 | -10/Materials | Lost 8 parts (1p1n1u5w) 1146 | -10/Materials | Entered Mines 1153 | -10/Mines | Assembled infested the area 1182 | -10/Mines | Destroyed by S-10 Pest with Light Assault Rifle Last Messages --------------- ALERT: Infestation in the mines, dispatching Demolisher response squad. K-01 Serf collects debris. Hover Unit destroyed. Aluminum Leg destroyed. Overweight warning: You are carrying more than your current propulsion can efficiently support, which slows movement; see status page ('s') or the top of the parts list for the specific mass vs. support values. S-10 Pest destroyed. K-01 Serf collects debris. Slammed into K-01 Serf. HV Slug penetrates Wall. C-30 ARC bursts open, deploying its payload. D-53 Grenadier unfolds itself. K-01 Serf collects debris. Acquired 15 matter. HV Slug penetrates Wall. [Achievement: First Step to Greatness] Map ----- +----------------------------------------------------+ | ???????????????????????????????????????????????? | | ???????????????????????????????????????????????? | | ???????????????????????????????????????????????? | | ???????????????????????????????????????????????? | | ???????????????????????????????????????????????? | | ???????????????????????????????????????????????? | | ???????????????????????????????????????????????? | | ???????????????????????????????????????????????? | | ???????????????????????????????????????????????? | | ???????????????????????????????????????????????? | | ???????????????????????????????????????????????? | | ???????????????????????????????????????????????? | | ?????????????????????????#?????????????????????? | | ????????????????????????? ?????????????????????? | | ????????????????????????# ?????????????????????? | | ????????????????????#### ?????????????????????? | | ????????????????????? ??????????????????????? | | ????????????????????? k??????????????????????? | | ????????????????????? ??????????????????????? | | ?????????????????????? ??????????????????????? | | ?????????????????????? ??????????????????????? | | ??????????????????????# ;??????????????????????? | | ??????????????????????#d#??????????????????????? | | ??????????????????????# ###### #???????????????? | | ??????????????????????#d % #???????????????? | | ??????????????????????#@ #######???????????????? | | ??????????????????##### #??##?????????????????? | | ??????#######????## #ss### #?????????????????? | | ??????? ???## #?????????????????? | | ???????" """ ??#= ##?????????????????? | | ??????"" """ ###% ##??????????????????? | | ??????"" """ [ ##???????????????????? | | ???? ## # ##????????????????????? | | ???# """ """ ?# ## #?????????????????????? | | ?????""" """ ??# #### ########???????????????? | | ??????"" """ ??# ??# ### #???????????????? | | ???????? ???###??# #???????????????? | | ???????" """????????## #???????????????? | | ???????" ""??????????###### #???????????????? | | ???????? ""???????????????# #???????????????? | | ??????????????????????????# #???????????????? | | ??????????????????????????######???????????????? | | ???????????????????????????????????????????????? | | ???????????????????????????????????????????????? | | ???????????????????????????????????????????????? | | ???????????????????????????????????????????????? | | ???????????????????????????????????????????????? | | | | | | | +----------------------------------------------------+ Best States ------------- Heat Dissipation 35 Energy Generation 10 Energy Capacity 250 Matter Stores 302 Matter Capacity 400 Sight Range 16 Terrain Scan Density 10 Evasion (%) 55 Item Schematics ----------------- None Robot Schematics ------------------ None Fabricated ------------ Nothing Repaired ---------- Nothing Alien Tech Used ----------------- None Achievements -------------- Crack Shot First Step to Greatness One Hack Too Far Uninvited Guest Challenges ------------ None Game ------ Seed SpectralThermicClaws Manual? 0 Play Time 00:26:26 Cumulative 0.4 hours Start 2025.09.24 @ 18:23:13 End 2025.09.24 @ 18:56:02 Sessions 1 Manual Loads 0 Difficulty Rogue Special Mode None Game No. 1 Rogue 1 Adventurer 0 Explorer 0 Win Type - Total 0 Types 0/0/0/0/0/0/0/0/0/0 Lore% 0 Gallery% 1 Achievement% 1 Wizard Run 0 Options --------- Layout 1 ASCII 0 Keyboard 0 Movement Mouse Keybinds 0 Fullscreen 1 Font 32/SmallcapsGlow Map View 50x35 Zoom Use 0% Tactical HUD 0 Map Filters NONE Filters NONE Steam 1 RUN: 6b535abd-39ed-4f06-b52f-0bbc492e88e2